fUSD/lending_fUSD_20260224
["ID","MTS","AMOUNT","RATE_DAILY","PERIOD"]
[406540814,1771926643915,-176.00427241,0.0001797,2]
[406540815,1771926643924,-1194.0,0.00017977,2]
[406540816,1771926643933,-1376889.4999588,0.0001798,2]
[406540817,1771926643942,-155.613,0.00017999,2]
[406540818,1771926643951,-300.0,0.00017999,2]
[406540819,1771926643960,-300.0,0.00017999,2]
[406540820,1771926643970,-666.0,0.00017999,2]
[406540821,1771926643979,-300.0,0.00017999,2]
[406540822,1771926643988,-300.0,0.00017999,2]
[406540823,1771926643998,-300.0,0.00017999,2]
[406540824,1771926644006,-666.0,0.00017999,2]
[406540825,1771926644016,-2443607.9567562,0.00018,2]
[406540826,1771926644025,-1045382.26535561,0.00018,2]
[406540830,1771926644794,-920.0,0.00016754,2]
[406540831,1771926644803,-41.69544861,0.00018,2]
[406540832,1771926644815,-11140.9429633,0.00018,2]
[406540833,1771926644855,-1280.8790409,0.00018,2]
[406540834,1771926644866,-398.23705892,0.00018,2]
[406540835,1771926644903,-590.72355662,0.00018,2]
[406540836,1771926644937,-54170.04513874,0.00018,2]
[406540837,1771926645201,-488.6665048,0.00018,2]
[406540838,1771926645212,-524700.96950459,0.00018,2]
[406540839,1771926645224,-6311.80510258,0.00018,2]
[406540843,1771926781232,-250.0,0.00015,2]
[406540844,1771926781241,-300.0,0.00017,2]
[406540845,1771926781250,-3383019.94575582,0.00018,2]
[406540846,1771926781260,-501.18596984,0.00018,2]
[406540847,1771926781268,-9311493.83081123,0.00018,2]
[406540848,1771926781278,-335.90401971,0.00018,30]
[406540849,1771926781287,-981386.32961877,0.00018,2]
[406540850,1771926781296,-150.0,0.00018,2]
[406540851,1771926781305,-3176.86892078,0.00018,2]
[406540852,1771926781314,-151.0,0.00018,2]
[406540853,1771926781323,-153.565388,0.00018,2]
[406540854,1771926781332,-151.0,0.00018,2]
[406540855,1771926781341,-151.000009,0.00018,2]
[406540856,1771926781351,-151.0,0.00018,2]
[406540857,1771926781363,-151.0,0.00018,2]
[406540858,1771926781373,-151.0,0.00018,2]
[406540859,1771926781382,-151.0,0.00018,2]
[406540860,1771926781392,-192.272738,0.00018,2]
[406540861,1771926781402,-151.0,0.00018,2]
[406540862,1771926781411,-151.0,0.00018,2]
[406540863,1771926781422,-153.018023,0.00018,2]
[406540864,1771926781432,-151.0,0.00018,2]
[406540865,1771926781442,-154.728747,0.00018,2]
[406540866,1771926781451,-493.164724,0.00018,2]
[406540867,1771926781461,-493.164724,0.00018,2]
[406540868,1771926781470,-493.164724,0.00018,2]
[406540869,1771926781479,-493.164724,0.00018,2]
[406540870,1771926781488,-493.164724,0.00018,2]
[406540871,1771926781498,-493.164724,0.00018,2]
[406540872,1771926781507,-493.164724,0.00018,2]
[406540873,1771926781516,-493.164724,0.00018,2]
[406540874,1771926781525,-493.164724,0.00018,2]
[406540875,1771926781535,-493.164724,0.00018,2]
[406540876,1771926781544,-493.164724,0.00018,2]
[406540877,1771926781553,-493.164724,0.00018,2]
[406540878,1771926781562,-151.0,0.00018,2]
[406540879,1771926781571,-151.0,0.00018,2]
[406540880,1771926781580,-154.398255,0.00018,2]
[406540881,1771926781589,-151.0,0.00018,2]
[406540882,1771926781598,-151.0,0.00018,2]
[406540883,1771926781607,-151.0,0.00018,2]
[406540884,1771926781617,-151.0,0.00018,2]
[406540885,1771926781626,-151.0,0.00018,2]
[406540886,1771926781635,-151.0,0.00018,2]
[406540887,1771926781644,-151.0,0.00018,2]
[406540888,1771926781653,-151.0,0.00018,2]
[406540889,1771926781662,-151.0,0.00018,2]
[406540890,1771926781671,-275.352039,0.00018,2]
[406540891,1771926781681,-155.700849,0.00018,2]
[406540892,1771926781690,-151.0,0.00018,2]
[406540893,1771926781699,-151.0,0.00018,2]
[406540894,1771926781708,-157.600476,0.00018,2]
[406540895,1771926781717,-151.0,0.00018,2]
[406540896,1771926781726,-155.243002,0.00018,2]
[406540897,1771926781734,-151.0,0.00018,2]
[406540898,1771926781744,-264.0,0.00018082,2]
[406540899,1771926781753,-2018.103,0.000181,2]
[406540900,1771926781763,-2000.0,0.000181,2]
[406540901,1771926781772,-151.89876051,0.0001812,2]
[406540902,1771926781781,-174.9444,0.0001812,2]
[406540903,1771926781791,-174.9444,0.0001812,2]
[406540904,1771926781800,-174.9444,0.0001812,2]
[406540905,1771926781809,-174.9444,0.0001812,2]
[406540906,1771926781818,-174.9444,0.0001812,2]
[406540907,1771926781827,-482.62264482,0.00018129,2]
[406540908,1771926781838,-482.62264482,0.00018146,2]
[406540909,1771926781847,-2000.0,0.000182,2]
[406540910,1771926781856,-264.0,0.00018207,2]
[406540911,1771926781866,-500.0,0.000183,2]
[406540912,1771926781875,-173.87087054,0.000184,3]
[406540913,1771926781884,-446.66,0.00018405,2]
[406540914,1771926781893,-482.62264482,0.00018491,2]
[406540915,1771926781902,-446.66,0.00018538,2]
[406540916,1771926781911,-482.62264482,0.00018541,2]
[406540917,1771926781920,-161.489342,0.00018574,2]
[406540918,1771926781929,-446.66,0.00018671,2]
[406540919,1771926781939,-500.0,0.00018707,5]
[406540920,1771926781947,-1600.0,0.00018709,2]
[406540921,1771926781956,-446.66,0.00018804,2]
[406540922,1771926781965,-482.62264482,0.00018854,2]
[406540923,1771926781975,-802.8260606,0.00018904,2]
[406540924,1771926781984,-1000.0,0.00018929,2]
[406540925,1771926781993,-482.62264482,0.00018935,2]
[406540926,1771926782002,-446.66,0.00018937,2]
[406540927,1771926782011,-427.76795387,0.0001895,2]
[406540928,1771926782020,-209.7353981,0.00019,2]
[406540929,1771926782029,-6140.72928219,0.00019,2]
[406540930,1771926782039,-446.70021263,0.00019069,2]
[406540931,1771926782048,-300.0,0.00019177,2]
[406540932,1771926782057,-666.0,0.00019177,2]
[406540933,1771926782066,-373.05934135,0.00019178,2]
[406540934,1771926782075,-151.0,0.00019178,2]
[406540935,1771926782084,-152.481257,0.00019178,2]
[406540936,1771926782093,-151.000017,0.00019178,2]
[406540937,1771926782103,-2669.849149,0.00019178,2]
[406540938,1771926782112,-2669.849149,0.00019178,2]
[406540939,1771926782121,-2669.849149,0.00019178,2]
[406540940,1771926782129,-2669.849149,0.00019178,2]
[406540941,1771926782138,-2669.849149,0.00019178,2]
[406540942,1771926782148,-2669.849149,0.00019178,2]
[406540943,1771926782157,-2669.849149,0.00019178,2]
[406540944,1771926782166,-2669.849149,0.00019178,2]
[406540945,1771926782176,-2669.849149,0.00019178,2]
[406540946,1771926782185,-2669.849149,0.00019178,2]
[406540947,1771926782194,-2669.849149,0.00019178,2]
[406540948,1771926782203,-2669.849149,0.00019178,2]
[406540949,1771926782212,-482.62264482,0.00019217,2]
[406540950,1771926782221,-482.62264482,0.0001933,2]
[406540951,1771926782230,-269.37,0.00019462,2]
[406540952,1771926782239,-2258.0,0.00019573,2]
[406540953,1771926782249,-482.62264482,0.00019579,2]
[406540954,1771926782258,-1319.85,0.00019711,2]
[406540955,1771926782267,-3496.0,0.00019754,2]
[406540956,1771926782277,-1040.0,0.00019754,2]
[406540957,1771926782286,-618.0,0.00019754,2]
[406540958,1771926782295,-1339.0,0.00019754,2]
[406540959,1771926782304,-1277.0,0.00019754,2]
[406540960,1771926782313,-1210.0,0.00019754,2]
[406540961,1771926782322,-5980.0,0.00019754,2]
[406540962,1771926782331,-2455.0,0.00019754,2]
[406540963,1771926782340,-920.0,0.00019754,2]
[406540964,1771926782350,-155.0,0.00019799,2]
[406540965,1771926782362,-482.62264482,0.00019942,2]
[406540966,1771926782371,-580.0,0.00019955,2]
[406540967,1771926782380,-150.0,0.00019955,2]
[406540968,1771926782389,-150.0,0.00019955,2]
[406540969,1771926782399,-150.0,0.00019955,2]
[406540970,1771926782409,-178.0,0.00019955,2]
[406540971,1771926782418,-269.37,0.00019975,2]
[406540972,1771926782427,-1538.23597158,0.0002,2]
[406540973,1771926782438,-177.07673491,0.0002,2]
[406540974,1771926782447,-1298.63021323,0.0002,2]
[406540975,1771926782456,-1048.32623553,0.0002,2]
[406540976,1771926782466,-2321.29862396,0.0002,2]
[406540977,1771926782475,-154.9920342,0.0002,2]
[406540978,1771926782483,-152.0,0.0002,2]
[406540979,1771926782493,-1709.74067993,0.0002,120]
[406540980,1771926782502,-150.61507393,0.0002,20]
[406540981,1771926782511,-482.62264482,0.00020304,2]
[406540982,1771926782520,-496.0,0.0002037,2]
[406540983,1771926782529,-269.37,0.00020487,2]
[406540984,1771926782538,-500.0,0.00020509,6]
[406540985,1771926782547,-236.88,0.00020572,2]
[406540986,1771926782557,-586.78597984,0.000209,30]
[406540987,1771926782935,-266.0,0.00020945,7]
[406540988,1771926782945,-788.80543513,0.00021,120]
[406540989,1771926782954,-1600.0,0.00021047,2]
[406540990,1771926782964,-212.50594866,0.00021325,2]
[406540991,1771926782973,-236.88,0.00021344,2]
[406540992,1771926782982,-999.0,0.00021506,2]
[406540993,1771926782991,-155.0,0.00021599,2]
[406540994,1771926783001,-186.0,0.00021601,7]
[406540995,1771926783010,-10719.46448,0.00021694,7]
[406540996,1771926783019,-5000.0,0.00021918,2]
[406540997,1771926783028,-152.203883,0.00021918,2]
[406540998,1771926783038,-300.0,0.00021993,2]
[406540999,1771926783047,-666.0,0.00021993,2]
[406541000,1771926783056,-300.0,0.00021993,2]
[406541001,1771926783066,-300.0,0.00021993,2]
[406541002,1771926783076,-666.0,0.00021993,2]
[406541003,1771926783086,-307225.5746325,0.00021994,2]
[406541004,1771926783095,-309.11765045,0.00021999,2]
[406541005,1771926783105,-153.5481106,0.00021999,2]
[406541006,1771926783114,-1852.0,0.00022,2]
[406541007,1771926783123,-4851.8,0.00022035,2]
[406541008,1771926783133,-236.88,0.00022117,2]
[406541009,1771926783142,-500.0,0.00022312,8]
[406541010,1771926783152,-233.0,0.00022441,14]
[406541011,1771926783161,-4754.94,0.00022466,2]
[406541012,1771926783172,-3496.0,0.00022754,2]
[406541013,1771926783181,-1040.0,0.00022754,2]
[406541014,1771926783191,-618.0,0.00022754,2]
[406541015,1771926783200,-1339.0,0.00022754,2]
[406541016,1771926783209,-1277.0,0.00022754,2]
[406541017,1771926783219,-1210.0,0.00022754,2]
[406541018,1771926783229,-743.408,0.00022754,2]
[406541019,1771926783238,-2455.0,0.00022754,2]
[406541020,1771926783247,-920.0,0.00022754,2]
[406541021,1771926783256,-68551.2916694,0.00022889,2]
[406541022,1771926783266,-160.0,0.00023,2]
[406541023,1771926783275,-163.0,0.00023144,14]
[406541024,1771926783284,-1600.0,0.00023386,2]
[406541025,1771926783294,-3156.5,0.00023834,2]
[406541026,1771926783303,-200.0,0.00024028,9]
[406541027,1771926783312,-500.0,0.00024115,10]
[406541028,1771926783321,-166.0,0.00024186,21]
[406541029,1771926783330,-159.6291054,0.00024589,2]
[406541030,1771926783340,-168.44,0.00024658,30]
[406541031,1771926783351,-719.68,0.00024658,2]
[406541032,1771926783361,-151.0,0.00024658,2]
[406541033,1771926783370,-151.0,0.00024658,2]
[406541034,1771926783379,-151.0,0.00024658,2]
[406541035,1771926783390,-1000.0,0.00024658,2]
[406541036,1771926783399,-151.0,0.00024658,2]
[406541037,1771926783408,-151.0,0.00024658,2]
[406541038,1771926783419,-151.0,0.00024658,2]
[406541039,1771926783428,-151.0,0.00024658,2]
[406541040,1771926783437,-151.0,0.00024658,2]
[406541041,1771926783447,-151.0,0.00024658,2]
[406541042,1771926783456,-195.20457,0.00024658,2]
[406541043,1771926783465,-150.0,0.00024658,2]
[406541044,1771926783474,-160.39246538,0.00025,60]
[406541045,1771926783483,-8741.09521787,0.00025,2]
[406541046,1771926783492,-325.0,0.00025,15]
[406541047,1771926783501,-155.0,0.00025199,2]
[406541048,1771926783510,-1600.0,0.00025724,120]
[406541049,1771926783519,-3496.0,0.00025754,2]
[406541050,1771926783528,-1040.0,0.00025754,2]
[406541051,1771926783538,-618.0,0.00025754,2]
[406541052,1771926783547,-1339.0,0.00025754,2]
[406541053,1771926783556,-1277.0,0.00025754,2]
[406541054,1771926783565,-1210.0,0.00025754,2]
[406541055,1771926783574,-2455.0,0.00025754,2]
[406541056,1771926783584,-920.0,0.00025754,2]
[406541057,1771926783593,-150.0,0.0002589,2]
[406541058,1771926783603,-500.0,0.00025918,11]
[406541059,1771926783612,-505.22,0.00027123,4]
[406541060,1771926783621,-150.0,0.00027185,2]
[406541061,1771926783631,-200.0,0.00027229,14]
[406541062,1771926783641,-150.0,0.00027369,2]
[406541063,1771926783650,-608.97730885,0.00027397,120]
[406541064,1771926783659,-228.98983175,0.00027397,2]
[406541065,1771926783668,-2104.663,0.00027397,2]
[406541066,1771926783678,-10000.0,0.00027397,120]
[406541067,1771926783687,-10000.0,0.00027397,2]
[406541068,1771926783696,-10000.0,0.00027397,2]
[406541069,1771926783706,-1000.0,0.00027397,20]
[406541070,1771926783715,-300.0,0.00027397,2]
[406541071,1771926783724,-719.68,0.00027397,2]
[406541072,1771926783733,-1501.847663,0.00027397,2]
[406541073,1771926783742,-1501.847663,0.00027397,2]
[406541074,1771926783750,-1501.847663,0.00027397,2]
[406541075,1771926783760,-1501.847663,0.00027397,2]
[406541076,1771926783769,-1501.847663,0.00027397,2]
[406541077,1771926783778,-1501.847663,0.00027397,2]
[406541078,1771926783787,-1501.847663,0.00027397,2]
[406541079,1771926783797,-1501.847663,0.00027397,2]
[406541080,1771926783806,-1501.847663,0.00027397,2]
[406541081,1771926783815,-1501.847663,0.00027397,2]
[406541082,1771926783823,-1501.847663,0.00027397,2]
[406541083,1771926783833,-1501.847663,0.00027397,2]
[406541084,1771926783842,-151.0,0.00027397,2]
[406541085,1771926783851,-151.0,0.00027397,2]
[406541086,1771926783860,-151.0,0.00027397,2]
[406541087,1771926783869,-151.0,0.00027397,2]
[406541088,1771926783878,-151.0,0.00027397,2]
[406541089,1771926783887,-151.0,0.00027397,2]
[406541090,1771926783897,-151.0,0.00027397,2]
[406541091,1771926783906,-151.0,0.00027397,2]
[406541092,1771926783915,-209.35982,0.00027397,2]
[406541093,1771926783925,-212.10181614,0.00027397,4]
[406541094,1771926783935,-1000.0,0.0002751,2]
[406541095,1771926783944,-500.0,0.0002772,13]
[406541096,1771926783954,-1000.0,0.00027784,2]
[406541097,1771926783963,-1965.0,0.00028058,2]
[406541098,1771926783972,-1600.0,0.00028063,120]
[406541099,1771926783982,-167.31,0.00028493,2]
[406541100,1771926783991,-150.0,0.00028544,2]
[406541101,1771926784001,-3411.583,0.00028754,2]
[406541102,1771926784010,-1040.0,0.00028754,2]
[406541103,1771926784019,-618.0,0.00028754,2]
[406541104,1771926784029,-1339.0,0.00028754,2]
[406541105,1771926784039,-1277.0,0.00028754,2]
[406541106,1771926784048,-1210.0,0.00028754,2]
[406541107,1771926784058,-2455.0,0.00028754,2]
[406541108,1771926784067,-276.455,0.00028754,2]
[406541109,1771926784076,-160.0,0.00029,30]
[406541110,1771926784086,-160.0,0.00029,30]
[406541111,1771926784095,-2000.0,0.00029,2]
[406541112,1771926784105,-500.0,0.00029523,14]
[406541113,1771926784114,-3120.90212858,0.00029698,2]
[406541114,1771926784123,-432.78806671,0.00029849,30]
[406541115,1771926784133,-150.0,0.00029971,2]
[406541116,1771926784142,-7517.45859941,0.0003,2]
[406541117,1771926784152,-357.02678246,0.0003,30]
[406541118,1771926784161,-160.0,0.0003,120]
[406541119,1771926784170,-719.68,0.00030137,2]
[406541120,1771926784180,-10000.0,0.00030137,2]
[406541121,1771926784189,-385.27,0.000302,30]
[406541122,1771926784198,-158.02,0.00030411,120]
[406541123,1771926784208,-200.0,0.0003043,24]
[406541124,1771926784217,-160.0,0.00031,120]
[406541125,1771926784226,-500.0,0.00031326,16]
[406541126,1771926784236,-150.0,0.0003147,2]
[406541127,1771926784245,-1040.0,0.00031754,2]
[406541128,1771926784254,-618.0,0.00031754,2]
[406541129,1771926784264,-1339.0,0.00031754,2]
[406541130,1771926784273,-673.967,0.00031754,2]
[406541131,1771926784282,-1210.0,0.00031754,2]
[406541132,1771926784291,-2455.0,0.00031754,2]
[406541133,1771926784301,-197.76284814,0.00032,120]
[406541134,1771926784310,-219.37695831,0.00032,120]
[406541135,1771926784319,-167.9741128,0.00032,120]
[406541136,1771926784327,-3610.63,0.00032,120]
[406541137,1771926784337,-299.79791679,0.00032,120]
[406541138,1771926784346,-174.96388678,0.00032,120]
[406541139,1771926784359,-192.80259183,0.00032,120]
[406541140,1771926784368,-254.67898918,0.00032,120]
[406541141,1771926784377,-155.0,0.00032398,2]
[406541142,1771926784387,-5020.0,0.00032463,7]
[406541143,1771926784397,-2000.0,0.000327,2]
[406541144,1771926784406,-719.68,0.00032877,2]
[406541145,1771926784417,-5000.0,0.00032877,2]
[406541146,1771926784426,-5000.0,0.00032877,2]
[406541147,1771926784436,-5000.0,0.00032877,2]
[406541148,1771926784445,-2413.461169,0.00032877,2]
[406541149,1771926784455,-471.0,0.00032877,120]
[406541150,1771926784465,-10000.0,0.00032877,30]
[406541151,1771926784474,-10000.0,0.00032877,2]
[406541152,1771926784483,-40937.53,0.000329,14]
[406541153,1771926784492,-218.53067881,0.00033,7]
[406541154,1771926784502,-385.27,0.00033,30]
[406541155,1771926784511,-173.87087054,0.00033,30]
[406541156,1771926784521,-150.0,0.00033043,2]
[406541157,1771926784530,-40937.53,0.000331,2]
[406541158,1771926784540,-500.0,0.00033129,18]
[406541159,1771926784549,-157.45,0.000334,2]
[406541160,1771926784559,-169.84,0.000334,14]
[406541161,1771926784569,-200.0,0.0003363,37]
[406541162,1771926784578,-4754.94,0.00033699,2]
[406541163,1771926784588,-613.68933231,0.0003399,2]
[406541164,1771926784598,-1000.0,0.00034008,2]
[406541165,1771926784608,-150.0,0.00034696,2]
[406541166,1771926784617,-40937.53,0.000347,14]
[406541167,1771926784626,-1055.88,0.00034712,30]
[406541168,1771926784636,-602.122,0.00034754,2]
[406541169,1771926784645,-618.0,0.00034754,2]
[406541170,1771926784654,-1339.0,0.00034754,2]
[406541171,1771926784664,-2455.0,0.00034754,2]
[406541172,1771926784674,-500.0,0.00034931,19]
[406541173,1771926784683,-160.2,0.00035,6]
[406541174,1771926784693,-12741.89433417,0.00035,30]
[406541175,1771926784703,-174.0,0.00035,30]
[406541176,1771926784713,-1532.51943726,0.00035015,30]
[406541177,1771926784722,-385.27,0.000355,30]
[406541178,1771926784732,-1000.0,0.00035558,2]
[406541179,1771926784742,-1000.0,0.00035558,2]
[406541180,1771926784751,-1000.0,0.00035558,2]
[406541181,1771926784760,-1000.0,0.00035558,2]
[406541182,1771926784770,-1000.0,0.00035558,2]
[406541183,1771926784779,-502.28541989,0.00035609,30]
[406541184,1771926784789,-144804.77424838,0.0003561,2]
[406541185,1771926784799,-4451.23333229,0.0003561,2]
[406541186,1771926784808,-5000.0,0.0003561,2]
[406541187,1771926784817,-719.68,0.00035616,2]
[406541188,1771926784827,-152.0,0.00035678,3]
[406541189,1771926784839,-40937.53,0.000357,2]
[406541190,1771926784848,-1529.332,0.00035824,43]
[406541191,1771926784858,-161.31141,0.00035888,30]
[406541192,1771926784869,-354.83257127,0.000359,30]
[406541193,1771926784878,-119652.6595283,0.00036,2]
[406541194,1771926784888,-151.0,0.00036,31]
[406541195,1771926784898,-153.459208,0.00036,31]
[406541196,1771926784908,-493.164724,0.00036,7]
[406541197,1771926784917,-493.164724,0.00036,7]
[406541198,1771926784927,-493.164724,0.00036,7]
[406541199,1771926784936,-493.164724,0.00036,7]
[406541200,1771926784946,-151.0,0.00036,31]
[406541201,1771926784956,-151.0,0.00036,31]
[406541202,1771926784965,-151.0,0.00036,31]
[406541203,1771926784975,-2669.849149,0.00036,28]
[406541204,1771926784984,-2669.849149,0.00036,28]
[406541205,1771926784994,-2669.849149,0.00036,28]
[406541206,1771926785003,-2669.849149,0.00036,28]
[406541207,1771926785013,-40937.53,0.00036,14]
[406541208,1771926785022,-161.31141,0.00036088,30]
[406541209,1771926785032,-161.31141,0.00036288,30]
[406541210,1771926785041,-174.0,0.00036383,30]
[406541211,1771926785053,-2000.0,0.000364,2]
[406541212,1771926785063,-150.0,0.0003643,2]
[406541213,1771926785073,-5000.0,0.00036463,7]
[406541214,1771926785082,-161.31141,0.00036488,30]
[406541215,1771926785092,-161.31141,0.00036688,30]
[406541216,1771926785104,-1682.35101033,0.000367,120]
[406541217,1771926785113,-500.0,0.00036734,21]
[406541218,1771926785123,-161.31141,0.00036888,30]
[406541219,1771926785133,-537.7047,0.00036888,7]
[406541220,1771926785261,-193.0,0.000369,120]
[406541221,1771926785274,-272.0,0.000369,120]
[406541222,1771926785283,-407.0,0.00037052,2]
[406541223,1771926785294,-161.31141,0.00037088,30]
[406541224,1771926785304,-40937.53,0.000371,14]
[406541225,1771926785314,-171.82282874,0.000372,120]
[406541226,1771926785324,-171.82282871,0.000372,120]
[406541227,1771926785334,-171.82282871,0.000372,120]
[406541228,1771926785343,-171.82282871,0.000372,120]
[406541229,1771926785354,-161.31141,0.00037288,30]
[406541230,1771926785368,-151.0,0.000373,31]
[406541231,1771926785377,-151.0,0.000373,31]
[406541232,1771926785388,-161.31141,0.00037488,30]
[406541233,1771926785400,-161.31141,0.00037688,30]
[406541234,1771926785411,-618.0,0.00037754,2]
[406541235,1771926785422,-1339.0,0.00037754,2]
[406541236,1771926785434,-2455.0,0.00037754,2]
[406541237,1771926785445,-151.0,0.00037808,31]
[406541238,1771926785455,-151.0,0.00037808,31]
[406541239,1771926785466,-151.0,0.00037808,31]
[406541240,1771926785478,-161.31141,0.00037888,30]
[406541241,1771926785488,-186.17257758,0.000379,120]
[406541242,1771926785498,-815.1720267,0.00037999,120]
[406541243,1771926785507,-385.27,0.00038,30]
[406541244,1771926785516,-166.0,0.00038,30]
[406541245,1771926785526,-161.31141,0.00038088,30]
[406541246,1771926785537,-166.69777028,0.000381,33]
[406541247,1771926785547,-150.0,0.00038252,2]
[406541248,1771926785557,-161.31141,0.00038288,30]
[406541249,1771926785569,-224.0,0.00038356,120]
[406541250,1771926785580,-161.31141,0.00038488,30]
[406541251,1771926785591,-500.0,0.00038537,22]
[406541252,1771926785601,-254.26752458,0.00038557,120]
[406541253,1771926785611,-161.31141,0.00038688,30]
[406541254,1771926785621,-791.91,0.00038831,120]
[406541255,1771926785630,-1591.89046,0.000389,120]
[406541256,1771926785640,-1021.10227,0.000389,120]
[406541257,1771926785650,-156.45191009,0.00039,90]
[406541258,1771926785660,-3000.0,0.00039,10]
[406541259,1771926785670,-196.292288,0.00039,120]
[406541260,1771926785680,-151.0,0.00039,120]
[406541261,1771926785690,-1501.847663,0.00039,120]
[406541262,1771926785700,-1501.847663,0.00039,120]
[406541263,1771926785710,-1501.847663,0.00039,120]
[406541264,1771926785720,-1501.847663,0.00039,120]
[406541265,1771926785731,-151.0,0.00039,120]
[406541266,1771926785740,-161.31141,0.00039088,30]
[406541267,1771926785750,-161.31141,0.00039288,30]
[406541268,1771926785760,-161.31141,0.00039488,30]
[406541269,1771926785769,-161.31141,0.00039688,30]
[406541270,1771926785779,-1000.0,0.00039816,2]
[406541271,1771926785789,-161.31141,0.00039888,30]
[406541272,1771926785799,-2747.05848742,0.00039999,2]
[406541273,1771926785808,-500.0,0.00039999,31]
[406541274,1771926785818,-354.8856562,0.00039999,31]
[406541275,1771926785828,-327.49089498,0.00039999,31]
[406541276,1771926785838,-500.0,0.00039999,31]
[406541277,1771926785848,-500.0,0.00039999,31]
[406541278,1771926785859,-500.0,0.00039999,31]
[406541279,1771926785869,-500.0,0.00039999,31]
[406541280,1771926785879,-166.94646985,0.00039999,31]
[406541281,1771926785889,-500.0,0.00039999,31]
[406541282,1771926785900,-444.15789246,0.00039999,31]
[406541283,1771926785912,-488.98991569,0.00039999,31]
[406541284,1771926785923,-500.0,0.00039999,31]
[406541285,1771926785934,-512.53258443,0.00039999,31]
[406541286,1771926785944,-500.0,0.00039999,31]
[406541287,1771926785954,-512.53258443,0.00039999,31]
[406541288,1771926785964,-500.0,0.00039999,31]
[406541289,1771926785975,-512.53258443,0.00039999,31]
[406541290,1771926785985,-500.0,0.00039999,31]
[406541291,1771926785996,-512.53258443,0.00039999,31]
[406541292,1771926786006,-512.53258443,0.00039999,31]
[406541293,1771926786016,-512.53258443,0.00039999,31]
[406541294,1771926786026,-500.0,0.00039999,31]
[406541295,1771926786036,-512.53258443,0.00039999,31]
[406541296,1771926786046,-500.0,0.00039999,31]
[406541297,1771926786056,-512.53258443,0.00039999,31]
[406541298,1771926786066,-512.53258443,0.00039999,31]
[406541299,1771926786077,-512.53258443,0.00039999,31]
[406541300,1771926786088,-500.0,0.00039999,31]
[406541301,1771926786098,-500.0,0.00039999,31]
[406541302,1771926786108,-500.0,0.00039999,31]
[406541303,1771926786118,-512.53258443,0.00039999,31]
[406541304,1771926786128,-512.53258443,0.00039999,31]
[406541305,1771926786138,-512.53258443,0.00039999,31]
[406541306,1771926786148,-512.53258443,0.00039999,31]
[406541307,1771926786158,-512.53258443,0.00039999,31]
[406541308,1771926786169,-512.53258443,0.00039999,31]
[406541309,1771926786178,-512.53258443,0.00039999,31]
[406541310,1771926786187,-512.53258443,0.00039999,31]
[406541311,1771926786197,-512.53258443,0.00039999,31]
[406541312,1771926786206,-512.53258443,0.00039999,31]
[406541313,1771926786216,-512.53258443,0.00039999,31]
[406541314,1771926786225,-512.53258443,0.00039999,31]
[406541315,1771926786235,-512.53258443,0.00039999,31]
[406541316,1771926786245,-512.53258443,0.00039999,31]
[406541317,1771926786254,-512.53258443,0.00039999,31]
[406541318,1771926786264,-512.53258443,0.00039999,31]
[406541319,1771926786274,-512.53258443,0.00039999,31]